[Event "Tsaghkadzor Open 2024"]
[Site "Tsaghkadzor"]
[Date "2024.10.03"]
[Round "6.7"]
[White "Yeritsyan, Hayk"]
[Black "Hayrapetyan, Hovik"]
[Result "0-1"]
[ECO "B51"]
[WhiteElo "2229"]
[BlackElo "2464"]
[Annotator "RC"]
[PlyCount "116"]
[EventDate "2024.09.13"]
[EventType "swiss"]
[EventCountry "ARM"]
[SourceTitle "playchess.com"]
[Source "ChessBase"]
[SourceQuality "1"]
[TimeControl "40/5400+30:1800+30"]

1. e4 {[%emt 0:00:49]} c5 {[%emt 0:00:05]} 2. Nf3 {[%emt 0:00:07]} d6 {[%emt 0:00:10]} 3. Bb5+ {[%emt 0:00:07]} Nd7 {[%emt 0:00:29]} 4. O-O {[%emt 0:00:09]} a6 {[%emt 0:00:29]} 5. Be2 {[%emt 0:00:08]} Ngf6 {[%emt 0:00:18]} 6. d3 {[%emt 1:32:10]} g6 {[%emt 1:31:59]} 7. c4 {[%emt 0:00:30]} b6 {[%emt 0:00:30]} 8. Nc3 {[%emt 0:00:00]} Bb7 {[%emt 0:00:30]} 9. Ng5 {[%emt 0:00:00]} Bg7 {[%emt 0:00:00]} 10. f4 {[%emt 0:01:30]} O-O {[%emt 0:01:00]} 11. f5 {[%emt 0:00:00]} b5 12. fxg6 {[%emt 0:00:00]} hxg6 13. Qe1 {[%emt 0:01:30]} bxc4 {[%emt 0:01:30]} 14. dxc4 {[%emt 0:00:00]} Nh7 {[%emt 0:00:00]} 15. Nxh7 {[%emt 0:00:00]} Kxh7 {[%emt 0:00:00]} 16. Qh4+ {[%emt 0:00:00]} Kg8 {[%emt 0:00:00]} 17. Nd5 {[%emt 0:00:00]} Bxd5 {[%emt 0:00:00]} 18. exd5 {[%emt 0:00:00]} Ne5 {[%emt 0:00:00]} 19. Bg5 {[%emt 0:00:00]} f6 {[%emt 0:00:00]} 20. Bd2 {[%emt 0:00:00]} Kf7 {[%emt 0:00:00]} 21. Bg4 {[%emt 0:00:00]} f5 {[%emt 0:00:00]} 22. Rxf5+ {[%emt 0:00:00]} gxf5 {[%emt 0:00:00]} 23. Bxf5 {[%emt 0:00:00]} Rh8 {[%emt 0:00:00]} 24. Be6+ {[%emt 0:00:00]} Ke8 {[%emt 0:00:00]} 25. Qg3 {[%emt 0:00:00]} Bf6 {[%emt 0:00:00]} 26. Rf1 {[%emt 0:00:00]} Qc7 {[%emt 0:00:00]} 27. Bg5 {[%emt 0:00:00]} Ra7 {[%emt 0:00:00]} 28. Rf5 {[%emt 0:00:00]} Qb8 {[%emt 0:01:02]} 29. b3 {[%emt 0:00:00]} Bxg5 {[%emt 0:01:55]} 30. Qxg5 {[%emt 0:00:00]} Kd8 {[%emt 0:00:39]} 31. h4 {[%emt 0:00:00]} Kc7 {[%emt 0:02:04]} 32. h5 {[%emt 0:00:00]} Qe8 {[%emt 0:00:01]} 33. h6 {[%emt 0:00:00]} Ra8 {[%emt 0:01:22]} 34. b4 {[%emt 0:00:00]} Rh7 {[%emt 0:00:44]} 35. bxc5 {[%emt 0:00:00]} Qg6 {[%emt 0:00:55]} 36. Rxe5 {[%emt 0:00:00]} Qb1+ {[%emt 0:00:01]} 37. Kh2 {[%emt 0:00:00]} dxe5 {[%emt 0:00:42]} 38. Qxe5+ {[%emt 0:00:00]} Kb7 {[%emt 0:01:37]} 39. c6+ {[%emt 0:00:00]} Kb6 {[%emt 0:00:01]} 40. Qe3+ {[%emt 0:00:00]} Ka5 {[%emt 0:00:00]} 41. Qa3+ {[%emt 0:18:02]} Kb6 {[%emt 0:16:28]} 42. Qe3+ {[%emt 0:00:14]} Ka5 {[%emt 0:00:04]} 43. c7 {[%emt 0:02:23]} Qb4 {[%emt 0:01:31]} 44. c5 {[%emt 0:00:26]} Rah8 {[%emt 0:02:33]} 45. c8=Q {[%emt 0:04:59]} Rxh6+ {[%emt 0:00:27]} 46. Qxh6 {[%emt 0:00:30]} Qf4+ {[%emt 0:01:25]} 47. Kg1 {[%emt 0:00:03]} Qd4+ {[%emt 0:00:04]} 48. Kf1 {[%emt 0:00:12]} Rxh6 {[%emt 0:00:16]} 49. Qc7+ {[%emt 0:00:35]} Kb4 {[%emt 0:00:56]} 50. Qb8+ {[%emt 0:00:36]} Kxc5 {[%emt 0:02:32]} 51. Qa7+ {[%emt 0:02:12]} Kc4 {[%emt 0:00:04]} 52. Qxa6+ {[%emt 0:00:07]} Kb4 {[%emt 0:02:48]} 53. a3+ {[%emt 0:01:06]} Kb3 {[%emt 0:00:28]} 54. Qb5+ {[%emt 0:01:30]} Ka2 {[%emt 0:01:30]} 55. Qe2+ {[%emt 0:00:29]} Kxa3 {[%emt 0:00:04]} 56. Qf3+ {[%emt 0:01:02]} Kb4 {[%emt 0:00:05]} 57. Qg4 {[%emt 0:00:07]} Rf6+ {[%emt 0:00:05]} 58. Ke2 {[%emt 0:00:59]} Rf4 {[%emt 0:00:08]} 0-1

[Event "Tsaghkadzor Open 2024"]
[Site "Tsaghkadzor"]
[Date "2024.10.03"]
[Round "6.8"]
[White "Goganov, Aleksey"]
[Black "Gong, Sunle"]
[Result "1/2-1/2"]
[ECO "C42"]
[WhiteElo "2463"]
[BlackElo "2226"]
[Annotator "TA"]
[PlyCount "65"]
[EventDate "2024.09.13"]
[EventType "swiss"]
[EventCountry "ARM"]
[SourceTitle "playchess.com"]
[Source "ChessBase"]
[SourceQuality "1"]
[TimeControl "40/5400+30:1800+30"]

{[%evp 25,65,5,28,32,37,36,27,36,18,16,12,8,8,0,0,0,0,0,0,0,0,0,0,11,0,0,0,0,7,0,0,0,0,0,8,0,0,0,18,0,0,0]} 1. e4 {[%emt 0:00:04]} e5 {[%emt 0:00:07]} 2. Nf3 {[%emt 0:00:04]} Nf6 {[%emt 0:00:04]} 3. Nxe5 {[%emt 0:00:07]} d6 {[%emt 0:00:05][%cal Bd7d6,Bd6d5][%mdl 32]} 4. Nf3 {[%emt 0:00:04]} Nxe4 {[%emt 0:00:05]} 5. d4 {[%emt 0:00:05]} d5 {[%emt 0:00:08]} 6. Bd3 {[%emt 0:00:06]} Bd6 {[%emt 0:00:05]} 7. O-O {[%emt 0:00:55]} O-O {[%emt 0:00:05]} 8. c4 {[%emt 0:00:03]} c6 {[%emt 0:00:03]} 9. Re1 {[%emt 0:03:58]} Bf5 {[%emt 0:00:11]} 10. cxd5 {[%emt 0:00:06]} cxd5 {[%emt 0:00:05]} 11. Nc3 {[%emt 0:00:04]} Nxc3 {[%emt 0:00:14]} 12. bxc3 {[%emt 0:00:04]} Bxd3 {[%emt 0:00:04]} 13. Qxd3 {[%emt 0:00:04]} Nd7 {[%emt 0:00:15]} 14. Qf5 {[%emt 0:06:46]} Nb6 {[%emt 0:00:46]} 15. Ng5 {[%emt 0:00:31][%csl Gg5][%cal Rf5h7] [#]} g6 {[%emt 0:00:04]} 16. Qh3 {[%emt 0:00:06][%csl Gg5][%cal Rh3h7] White has an edge.} h5 {[%emt 0:00:05]} 17. g4 {[%emt 0:00:38][%cal Bg2g4,Bg4h5][%mdl 32] The position is equal.} Qd7 {[%emt 0:00:48] And now ...Rfe8 would win.} 18. gxh5 {[%emt 0:00:10]} Rfe8 $132 {[%emt 0:00:06][%mdl 2048] Black is not holding back} ({Of course not} 18... Qxh3 19. Nxh3 gxh5 20. Bf4 Bxf4 21. Nxf4 $14) 19. Rxe8+ {[%emt 0:02:42]} Rxe8 {[%emt 0:00:05]} 20. Qxd7 {[%emt 0:00:05]} Nxd7 {[%emt 0:03:07]} 21. hxg6 {[%emt 0:01:38]} Re1+ {[%emt 0:04:18]} 22. Kg2 {[%emt 0:00:04]} fxg6 {[%emt 0:00:36] [#] White must now prevent ...Bf4.} 23. Nf3 {[%emt 0:00:09]} Rd1 {[%emt 0:00:41]} 24. Bb2 {[%emt 0:00:07]} Rxa1 {[%emt 0:00:29]} 25. Bxa1 $11 {[%emt 0:00:03][%mdl 4096] Endgame. KBN-KBN} Nb6 {[%emt 0:02:07]} 26. Ne1 {[%emt 0:05:14]} Kf7 {[%emt 0:05:43]} 27. Nd3 {[%emt 0:02:20]} Ke6 {[%emt 0:01:59]} 28. h3 {[%emt 0:00:16]} Na4 {[%emt 0:00:52]} 29. Kf3 {[%emt 0:02:06]} Kf5 {[%emt 0:00:45]} 30. Ne1 {[%emt 0:02:31]} Bf4 {[%emt 0:10:19]} 31. Ke2 {[%emt 0:00:11] Prevents Bd2.} a5 {[%emt 0:02:05]} 32. Nc2 {[%emt 0:05:31]} Nb6 {[%emt 0:02:02]} 33. Bb2 {[%emt 1:10:08] Weighted Error Value: White=0.02 (flawless) /Black=0.02 (flawless) .  OK:         	White=6     	Black=13     Best:        	White=3     	Black=3} 1/2-1/2